lending/lending_fUSD_20251125
["ID","MTS","AMOUNT","RATE_DAILY","PERIOD"]
[394864560,1764029442929,-500.0,0.00035616,8]
[394864561,1764029442938,-500.0,0.00035616,8]
[394864562,1764029442947,-500.0,0.00035616,8]
[394864563,1764029442956,-500.0,0.00035616,8]
[394864564,1764029442965,-500.0,0.00035616,8]
[394864565,1764029442975,-500.0,0.00035616,8]
[394864566,1764029442990,-500.0,0.00035616,8]
[394864567,1764029442999,-500.0,0.00035616,8]
[394864568,1764029443008,-500.0,0.00035616,8]
[394864569,1764029443018,-500.0,0.00035616,8]
[394864570,1764029443029,-500.0,0.00035616,8]
[394864571,1764029443038,-500.0,0.00035616,8]
[394864572,1764029443050,-500.0,0.00035616,8]
[394864573,1764029443061,-500.0,0.00035616,8]
[394864574,1764029443069,-500.0,0.00035616,8]
[394864575,1764029443078,-500.0,0.00035616,8]
[394864576,1764029443087,-500.0,0.00035616,8]
[394864577,1764029443096,-500.0,0.00035616,8]
[394864578,1764029443105,-500.0,0.00035616,8]
[394864579,1764029443114,-500.0,0.00035616,8]
[394864580,1764029443123,-500.0,0.00035616,8]
[394864581,1764029443132,-500.0,0.00035616,8]
[394864582,1764029443141,-369.81863961,0.00035616,8]
[394864583,1764029443151,-500.0,0.00035616,8]
[394864584,1764029443160,-558.86976365,0.00035616,8]
[394864585,1764029443171,-500.0,0.00035616,8]
[394864586,1764029443182,-500.0,0.00035616,8]
[394864587,1764029443192,-500.0,0.00035616,8]
[394864588,1764029443202,-500.0,0.00035616,8]
[394864589,1764029443212,-500.0,0.00035616,8]
[394864590,1764029443222,-500.0,0.00035616,8]
[394864591,1764029443231,-500.0,0.00035616,8]
[394864592,1764029443240,-500.0,0.00035616,8]
[394864593,1764029443249,-500.0,0.00035616,8]
[394864594,1764029443258,-500.0,0.00035616,8]
[394864595,1764029443268,-500.0,0.00035616,8]
[394864596,1764029443277,-500.0,0.00035616,8]
[394864597,1764029443286,-500.0,0.00035616,8]
[394864598,1764029443296,-232.34320674,0.00035616,8]
[394864599,1764029443305,-500.0,0.00035616,8]
[394864600,1764029443316,-500.0,0.00035616,8]
[394864601,1764029443325,-151.0,0.00035616,31]
[394864602,1764029443335,-500.0,0.00035616,8]
[394864603,1764029443344,-500.0,0.00035616,8]
[394864604,1764029443354,-526.75,0.00035616,8]
[394864605,1764029443363,-151.0,0.00035616,31]
[394864606,1764029443373,-500.0,0.00035616,8]
[394864607,1764029443383,-245.23961062,0.00035616,8]
[394864608,1764029443392,-500.0,0.00035616,8]
[394864609,1764029443402,-500.0,0.00035616,8]
[394864610,1764029443411,-500.0,0.00035616,8]
[394864611,1764029443420,-500.0,0.00035616,8]
[394864612,1764029443430,-190.76179979,0.00035616,8]
[394864613,1764029443440,-500.0,0.00035616,8]
[394864614,1764029443449,-500.0,0.00035616,8]
[394864615,1764029443459,-574.42,0.00035616,8]
[394864616,1764029443468,-500.0,0.00035616,8]
[394864617,1764029443478,-167.447988,0.00035616,31]
[394864618,1764029443487,-500.0,0.00035616,8]
[394864619,1764029443497,-500.0,0.00035616,8]
[394864620,1764029443506,-500.0,0.00035616,8]
[394864621,1764029443515,-500.0,0.00035616,8]
[394864622,1764029443524,-553.883009,0.00035616,8]
[394864623,1764029443534,-500.0,0.00035616,8]
[394864624,1764029443544,-500.0,0.00035616,8]
[394864625,1764029443553,-151.0,0.00035616,31]
[394864626,1764029443562,-500.0,0.00035616,8]
[394864627,1764029443572,-151.0,0.00035616,31]
[394864628,1764029443582,-500.0,0.00035616,8]
[394864629,1764029443592,-500.0,0.00035616,8]
[394864630,1764029443602,-500.0,0.00035616,8]
[394864631,1764029443612,-500.0,0.00035616,8]
[394864632,1764029443622,-439.1464998,0.00035616,8]
[394864633,1764029443631,-500.0,0.00035616,8]
[394864634,1764029443640,-500.0,0.00035616,8]
[394864635,1764029443651,-500.0,0.00035616,8]
[394864636,1764029443661,-500.0,0.00035616,8]
[394864637,1764029443671,-500.0,0.00035616,8]
[394864638,1764029443681,-500.0,0.00035616,8]
[394864639,1764029443691,-500.0,0.00035616,8]
[394864641,1764029443700,-500.0,0.00035616,8]
[394864642,1764029443710,-500.0,0.00035616,8]
[394864643,1764029443720,-999.0,0.00035616,8]
[394864644,1764029443730,-500.0,0.00035616,8]
[394864645,1764029443739,-507.27183955,0.00035616,8]
[394864646,1764029443749,-500.0,0.00035616,2]
[394864647,1764029443758,-500.0,0.00035616,2]
[394864648,1764029443768,-500.0,0.00035616,8]
[394864649,1764029443778,-500.0,0.00035616,2]
[394864650,1764029443787,-500.0,0.00035616,2]
[394864652,1764029443796,-500.0,0.00035616,5]
[394864653,1764029443806,-505.41047958,0.00035616,8]
[394864655,1764029443816,-500.0,0.00035616,8]
[394864657,1764029443825,-500.0,0.00035616,8]
[394864658,1764029443834,-500.0,0.00035616,8]
[394864659,1764029443844,-500.0,0.00035616,8]
[394864660,1764029443853,-500.0,0.00035616,8]
[394864661,1764029443863,-500.0,0.00035616,8]
[394864662,1764029443873,-500.0,0.00035616,8]
[394864663,1764029443882,-500.0,0.00035616,8]
[394864664,1764029443891,-500.0,0.00035616,8]
[394864665,1764029443901,-500.0,0.00035616,120]
[394864666,1764029443911,-500.0,0.00035616,8]
[394864667,1764029443920,-500.0,0.00035616,2]
[394864668,1764029443929,-500.0,0.00035616,8]
[394864669,1764029443938,-500.0,0.00035616,8]
[394864670,1764029443947,-500.0,0.00035616,8]
[394864671,1764029443957,-500.0,0.00035616,10]
[394864672,1764029443966,-500.0,0.00035616,8]
[394864673,1764029443976,-500.0,0.00035616,8]
[394864674,1764029443985,-151.0,0.00035616,31]
[394864675,1764029443994,-215.78632364,0.00035616,8]
[394864676,1764029444007,-500.0,0.00035616,8]
[394864677,1764029444016,-500.0,0.00035616,8]
[394864678,1764029444025,-320.67548285,0.00035616,8]
[394864679,1764029444034,-500.0,0.00035616,8]
[394864680,1764029444045,-500.0,0.00035616,8]
[394864681,1764029444054,-500.0,0.00035616,8]
[394864682,1764029444062,-500.0,0.00035616,8]
[394864683,1764029444073,-500.0,0.00035616,8]
[394864684,1764029444086,-500.0,0.00035616,8]
[394864685,1764029444095,-500.0,0.00035616,8]
[394864686,1764029444105,-538.68,0.00035616,8]
[394864687,1764029444114,-350.87,0.00035616,2]
[394864688,1764029444123,-500.0,0.00035616,8]
[394864689,1764029444133,-500.0,0.00035616,8]
[394864690,1764029444143,-500.0,0.00035616,8]
[394864691,1764029444152,-500.0,0.00035616,8]
[394864692,1764029444161,-500.0,0.00035616,8]
[394864693,1764029444171,-541.97126187,0.00035616,8]
[394864694,1764029444180,-1000.0,0.00035616,8]
[394864695,1764029444190,-500.0,0.00035616,8]
[394864696,1764029444199,-500.0,0.00035616,8]
[394864697,1764029444208,-559.93,0.00035616,8]
[394864698,1764029444217,-500.0,0.00035616,8]
[394864699,1764029444225,-500.0,0.00035616,8]
[394864700,1764029444234,-500.0,0.00035616,2]
[394864701,1764029444244,-151.0,0.00035616,30]
[394864702,1764029444253,-500.0,0.00035616,8]
[394864703,1764029444263,-169.529164,0.00035616,30]
[394864704,1764029444272,-157.44414579,0.00035673,5]
[394864705,1764029444282,-500.0,0.00035673,5]
[394864706,1764029444292,-3371.1428994,0.00035875,2]
[394864707,1764029444301,-500.0,0.00035889,120]
[394864708,1764029444311,-500.0,0.0003589,8]
[394864709,1764029444320,-500.0,0.0003589,8]
[394864710,1764029444329,-500.0,0.0003589,8]
[394864711,1764029444338,-500.0,0.0003589,8]
[394864712,1764029444348,-500.0,0.0003589,8]
[394864713,1764029444358,-500.0,0.0003589,8]
[394864714,1764029444367,-507.7368462,0.0003589,8]
[394864715,1764029444377,-500.0,0.0003589,8]
[394864716,1764029444386,-352.62254252,0.0003589,8]
[394864717,1764029444397,-500.0,0.0003589,8]
[394864718,1764029444406,-500.0,0.0003589,8]
[394864719,1764029444416,-500.0,0.0003589,8]
[394864720,1764029444425,-500.0,0.0003589,8]
[394864721,1764029444435,-500.0,0.0003589,8]
[394864722,1764029444445,-500.0,0.0003589,8]
[394864723,1764029444454,-500.0,0.0003589,8]
[394864724,1764029444464,-515.28143509,0.0003589,8]
[394864725,1764029444473,-500.0,0.0003589,8]
[394864726,1764029444482,-500.0,0.0003589,8]
[394864727,1764029444492,-425.16936121,0.0003589,8]
[394864728,1764029444502,-500.0,0.0003589,8]
[394864729,1764029444511,-500.0,0.0003589,8]
[394864730,1764029444521,-500.0,0.0003589,8]
[394864731,1764029444530,-500.0,0.0003589,8]
[394864732,1764029444541,-500.0,0.0003589,8]
[394864733,1764029444550,-516.03879961,0.0003589,8]
[394864734,1764029444560,-182.33941336,0.0003589,8]
[394864735,1764029444569,-500.0,0.0003589,8]
[394864736,1764029444579,-500.0,0.0003589,8]
[394864737,1764029444589,-500.0,0.0003589,8]
[394864738,1764029444598,-500.0,0.0003589,8]
[394864739,1764029444608,-614.74958192,0.0003589,8]
[394864740,1764029444617,-500.0,0.0003589,8]
[394864741,1764029444627,-500.0,0.0003589,8]
[394864742,1764029444637,-500.0,0.0003589,8]
[394864743,1764029444647,-500.0,0.0003589,8]
[394864744,1764029444657,-500.0,0.0003589,8]
[394864745,1764029444666,-500.0,0.0003589,8]
[394864746,1764029444676,-500.0,0.0003589,8]
[394864747,1764029444685,-504.3414351,0.0003589,8]
[394864748,1764029444695,-500.0,0.0003589,8]
[394864749,1764029444705,-500.0,0.0003589,8]
[394864750,1764029444715,-500.0,0.0003589,8]
[394864751,1764029444724,-500.0,0.0003589,8]
[394864752,1764029444734,-500.0,0.0003589,8]
[394864753,1764029444743,-500.0,0.0003589,8]
[394864754,1764029444753,-500.0,0.0003589,8]
[394864755,1764029444762,-500.0,0.0003589,8]
[394864756,1764029444773,-500.0,0.0003589,8]
[394864757,1764029444782,-500.0,0.0003589,8]
[394864758,1764029444793,-199.0,0.0003589,7]
[394864759,1764029444802,-500.0,0.0003589,8]
[394864760,1764029444811,-500.0,0.0003589,8]
[394864761,1764029444820,-500.0,0.0003589,8]
[394864762,1764029444830,-500.0,0.0003589,8]
[394864763,1764029444839,-500.0,0.0003589,8]
[394864764,1764029444849,-500.0,0.0003589,2]
[394864765,1764029444858,-500.0,0.0003589,5]
[394864766,1764029444867,-500.0,0.0003589,8]
[394864767,1764029445021,-500.0,0.0003589,8]
[394864768,1764029445032,-500.0,0.0003589,8]
[394864769,1764029445042,-500.0,0.0003589,8]
[394864770,1764029445052,-198.96,0.0003589,8]
[394864771,1764029445062,-632.8982154,0.0003589,8]
[394864772,1764029445071,-500.0,0.0003589,8]
[394864773,1764029445083,-500.0,0.0003589,2]
[394864774,1764029445092,-500.0,0.0003589,8]
[394864775,1764029445102,-500.0,0.0003589,8]
[394864776,1764029445112,-500.0,0.0003589,8]
[394864777,1764029445121,-578.99170067,0.0003589,8]
[394864779,1764029445131,-500.0,0.0003589,8]
[394864780,1764029445140,-500.0,0.0003589,8]
[394864781,1764029445150,-500.0,0.0003589,8]
[394864782,1764029445160,-500.0,0.0003589,8]
[394864783,1764029445169,-500.0,0.0003589,8]
[394864784,1764029445179,-500.0,0.0003589,8]
[394864785,1764029445189,-500.0,0.0003589,8]
[394864786,1764029445198,-1000.0,0.0003589,8]
[394864787,1764029445208,-283.59,0.0003589,8]
[394864789,1764029445218,-500.0,0.0003589,2]
[394864790,1764029445227,-1034.5,0.00036,2]
[394864791,1764029445237,-486.86292496,0.00036164,8]
[394864792,1764029445247,-500.0,0.00036164,8]
[394864793,1764029445256,-186.08121917,0.00036164,8]
[394864794,1764029445266,-264.70235955,0.00036164,8]
[394864795,1764029445275,-500.0,0.00036164,8]
[394864796,1764029445284,-255.94,0.00036164,8]
[394864797,1764029445293,-500.0,0.00036164,8]
[394864798,1764029445303,-237.51535709,0.00036164,8]
[394864799,1764029445314,-500.0,0.00036164,8]
[394864800,1764029445324,-151.60248292,0.00036164,8]
[394864801,1764029445336,-491.5695651,0.00036164,8]
[394864802,1764029445347,-268.81625522,0.00036164,8]
[394864803,1764029445358,-500.0,0.00036164,8]
[394864804,1764029445367,-159.78449983,0.00036164,8]
[394864805,1764029445379,-252.7952596,0.00036164,8]
[394864806,1764029445389,-500.0,0.00036164,8]
[394864807,1764029445399,-622.23009433,0.00036164,8]
[394864808,1764029445409,-500.0,0.00036164,8]
[394864809,1764029445418,-589.53,0.00036164,8]
[394864810,1764029445429,-500.0,0.00036164,8]
[394864811,1764029445439,-562.77,0.00036164,8]
[394864812,1764029445448,-500.0,0.00036164,8]
[394864813,1764029445458,-500.0,0.00036164,8]
[394864814,1764029445467,-500.0,0.00036164,8]
[394864815,1764029445476,-500.0,0.00036164,8]
[394864816,1764029445486,-508.54,0.00036164,8]
[394864817,1764029445497,-500.0,0.00036164,8]
[394864818,1764029445506,-500.0,0.00036164,8]
[394864819,1764029445515,-500.0,0.00036164,8]
[394864820,1764029445525,-500.0,0.00036164,8]
[394864821,1764029445534,-500.0,0.00036164,8]
[394864822,1764029445545,-500.0,0.00036164,8]
[394864823,1764029445555,-500.0,0.00036164,8]
[394864824,1764029445565,-500.0,0.00036164,8]
[394864825,1764029445574,-514.85,0.00036164,8]
[394864826,1764029445586,-500.0,0.00036164,8]
[394864827,1764029445595,-500.0,0.00036164,8]
[394864828,1764029445605,-500.0,0.00036164,8]
[394864829,1764029445615,-271.35,0.00036164,2]
[394864830,1764029445637,-500.0,0.00036164,8]
[394864831,1764029445649,-500.0,0.00036164,8]
[394864832,1764029445659,-500.0,0.00036164,2]
[394864833,1764029445668,-279.46748818,0.00036164,8]
[394864834,1764029445678,-244.1048511,0.00036164,8]
[394864835,1764029445687,-500.0,0.00036164,8]
[394864836,1764029445697,-537.27681599,0.00036164,8]
[394864837,1764029445707,-1000.0,0.00036164,8]
[394864838,1764029445717,-448.44151921,0.00036164,2]
[394864839,1764029445726,-833.5,0.00036335,30]
[394864840,1764029445736,-485.47,0.00036438,8]
[394864841,1764029445745,-500.0,0.00036438,8]
[394864842,1764029445756,-500.0,0.00036438,8]
[394864843,1764029445768,-219.54,0.00036438,8]
[394864844,1764029445778,-431.03397235,0.00036438,8]
[394864845,1764029445787,-293.48799826,0.00036438,8]
[394864846,1764029445796,-215.48,0.00036438,8]
[394864847,1764029445805,-158.58,0.00036438,8]
[394864848,1764029445814,-500.0,0.00036438,8]
[394864849,1764029445823,-642.9583551,0.00036438,8]
[394864851,1764029445833,-500.0,0.00036438,8]
[394864852,1764029445842,-199.0,0.00036438,8]
[394864853,1764029445851,-500.0,0.00036438,8]
[394864854,1764029445860,-500.0,0.00036438,2]
[394864855,1764029445869,-297.5,0.00036438,8]
[394864856,1764029445879,-500.0,0.00036438,8]
[394864857,1764029445887,-451.10091412,0.00036438,8]
[394864858,1764029445896,-152.0,0.00036592,3]
[394864859,1764029445906,-399.95091849,0.00036712,8]
[394864860,1764029445916,-500.0,0.00036712,8]
[394864861,1764029445925,-580.51159016,0.00036712,8]
[394864862,1764029445935,-500.0,0.00036712,8]
[394864863,1764029445943,-500.0,0.00036712,8]
[394864864,1764029445952,-416.11389986,0.00036712,2]
[394864865,1764029446164,-1555.55904262,0.00017759,2]
[394864866,1764029446173,-573.7346,0.00035589,10]
[394864867,1764029446183,-151.0,0.00035616,31]
[394864868,1764029446192,-151.0,0.00035616,31]
[394864869,1764029446202,-83.88610014,0.00036712,2]
[394864870,1764029446211,-500.0,0.00036712,8]
[394864871,1764029446221,-1599.0,0.00036776,2]
[394864872,1764029446230,-908.0,0.00036776,2]
[394864873,1764029446239,-254.75,0.000369,14]
[394864874,1764029446248,-500.0,0.00036986,8]
[394864875,1764029446257,-500.0,0.00036986,8]
[394864876,1764029446267,-199.0,0.00036986,9]
[394864877,1764029446276,-276.59388554,0.00036986,8]
[394864878,1764029446285,-500.0,0.00036986,2]
[394864879,1764029446294,-500.0,0.00036986,8]
[394864880,1764029446304,-500.0,0.0003726,8]
[394864881,1764029446313,-500.0,0.0003726,8]
[394864882,1764029446323,-500.0,0.0003726,2]
[394864883,1764029446331,-394.81483,0.0003726,8]
[394864884,1764029446341,-155.50195043,0.00037357,15]
[394864885,1764029446350,-500.0,0.00037534,8]
[394864886,1764029446359,-387.37569134,0.00037534,8]
[394864887,1764029446368,-199.0,0.00037534,10]
[394864888,1764029446378,-500.0,0.00037534,120]
[394864889,1764029446387,-500.0,0.00037534,2]
[394864890,1764029446396,-150.0,0.000378,7]
[394864891,1764029446405,-150.0,0.000378,7]
[394864892,1764029446414,-150.0,0.000378,7]
[394864893,1764029446424,-150.0,0.000378,7]
[394864894,1764029446433,-150.0,0.000378,7]
[394864895,1764029446442,-150.0,0.000378,7]
[394864896,1764029446451,-150.0,0.000378,7]
[394864897,1764029446461,-150.0,0.000378,7]
[394864898,1764029446470,-150.0,0.000378,7]
[394864899,1764029446479,-150.0,0.000378,7]
[394864900,1764029446489,-150.0,0.000378,7]
[394864901,1764029446498,-150.0,0.000378,7]
[394864902,1764029446507,-150.0,0.000378,7]
[394864903,1764029446516,-464.85957301,0.00037808,8]
[394864904,1764029446525,-500.0,0.00037808,120]
[394864905,1764029446534,-500.0,0.00037808,2]
[394864906,1764029446543,-150.36439221,0.00037903,2]
[394864907,1764029446553,-425.58558078,0.00038,120]
[394864908,1764029446562,-426.8933355,0.00038,7]
[394864909,1764029446571,-199.0,0.00038082,11]
[394864910,1764029446580,-615.97,0.00038082,120]
[394864911,1764029446589,-539.50356895,0.00038082,2]
[394864912,1764029446599,-500.0,0.0003822,120]
[394864913,1764029446608,-500.0,0.00038356,120]
[394864914,1764029446618,-175.672301,0.00038356,120]
[394864915,1764029446627,-1000.0,0.00038356,5]
[394864916,1764029446636,-500.0,0.0003863,120]
[394864917,1764029446647,-199.0,0.0003863,12]
[394864918,1764029446657,-150.0,0.0003864,7]
[394864919,1764029446666,-500.0,0.000387,120]
[394864920,1764029446675,-500.0,0.000387,120]
[394864921,1764029446685,-500.0,0.000387,120]
[394864922,1764029446694,-500.0,0.000387,120]
[394864923,1764029446703,-500.0,0.000387,120]
[394864924,1764029446713,-500.0,0.000387,120]
[394864925,1764029446722,-500.0,0.000387,120]
[394864926,1764029446731,-500.0,0.000387,120]
[394864927,1764029446740,-500.0,0.000387,120]
[394864928,1764029446749,-500.0,0.000387,120]
[394864929,1764029446758,-500.0,0.000387,120]
[394864930,1764029446767,-500.0,0.000387,120]
[394864931,1764029446776,-500.0,0.000387,120]
[394864932,1764029446785,-500.0,0.000387,120]
[394864933,1764029446794,-500.0,0.000387,120]
[394864934,1764029446803,-500.0,0.000387,120]
[394864935,1764029446813,-500.0,0.000387,120]
[394864936,1764029446822,-500.0,0.000387,120]
[394864937,1764029446831,-500.0,0.000387,120]
[394864938,1764029446840,-500.0,0.000387,120]
[394864939,1764029446849,-500.0,0.000387,120]
[394864940,1764029446857,-500.0,0.000387,120]
[394864941,1764029446867,-500.0,0.000387,120]
[394864942,1764029446876,-500.0,0.000387,120]
[394864943,1764029446886,-500.0,0.000387,120]
[394864944,1764029446895,-500.0,0.000387,120]
[394864945,1764029446905,-500.0,0.000387,120]
[394864946,1764029446914,-500.0,0.000387,120]
[394864947,1764029446923,-500.0,0.000387,120]
[394864948,1764029446932,-435.0729,0.00038741,7]
[394864949,1764029446942,-972.26763417,0.00038767,5]
[394864950,1764029446951,-885.9936102,0.000388,14]
[394864951,1764029446963,-694.021163,0.000388,14]
[394864952,1764029446974,-2455.79864222,0.000388,14]
[394864953,1764029446983,-150.0,0.0003885,7]
[394864954,1764029446993,-150.0,0.0003885,7]
[394864955,1764029447006,-3890.52656528,0.00038888,30]
[394864956,1764029447021,-25.13033472,0.00038888,30]
[394864957,1764029447030,-3371.1428994,0.00038889,2]
[394864958,1764029447039,-478.61,0.000389,2]
[394864959,1764029447049,-2861.6,0.00038954,2]
[394864960,1764029447057,-701.23,0.00039123,2]
[394864961,1764029447066,-957.74,0.00039123,2]
[394864962,1764029447076,-199.0,0.00039178,13]
[394864963,1764029447086,-150.0,0.000392,7]
[394864964,1764029447095,-150.0,0.0003948,7]
[394864965,1764029447104,-83355.86221884,0.000395,21]
[394864966,1764029447112,-100000.00896915,0.000395,3]
[394864967,1764029447121,-151.0,0.000395,120]
[394864968,1764029447130,-152.096875,0.000395,30]
[394864969,1764029447138,-151.0,0.000395,30]
[394864970,1764029447147,-151.0,0.000395,120]
[394864971,1764029447157,-151.0,0.000395,120]
[394864972,1764029447166,-582.11,0.00039654,2]
[394864973,1764029447175,-199.0,0.00039726,14]
[394864974,1764029447184,-908.0,0.00039776,2]
[394864975,1764029447192,-400.0,0.00039887,30]
[394864976,1764029447201,-156.82531927,0.00039887,30]
[394864977,1764029447240,-1308.95,0.00039888,2]
[394864978,1764029447249,-957.74,0.00039888,2]
[394864979,1764029447258,-150.0,0.000399,7]
[394864980,1764029447267,-150.0,0.000399,7]
[394864981,1764029447275,-150.0,0.000399,7]
[394864982,1764029447284,-150.0,0.000399,7]
[394864983,1764029447293,-150.0,0.000399,7]
[394864984,1764029447302,-613.09700592,0.00039906,5]
[394864985,1764029447311,-88135.32055503,0.0004,3]
[394864986,1764029447354,388.66893216,0.00014699,2]
[394864987,1764029456103,170.0,6e-07,2]
[394865013,1764029468990,-388.66893215,0.00015384,2]
[394865040,1764029537699,10000.01,0.000147,2]
[394865042,1764029537733,10000.01,0.000147,2]
[394865043,1764029537763,10000.01,0.000147,2]
[394865044,1764029537791,10000.01,0.000147,2]
[394865045,1764029537819,10000.01,0.000147,2]
[394865046,1764029537847,10000.01,0.000147,2]
[394865047,1764029537875,10000.01,0.000147,2]
[394865048,1764029537903,10000.01,0.000147,2]
[394865049,1764029537931,10000.01,0.000147,2]
[394865050,1764029537961,10000.01,0.000147,2]
[394865051,1764029539061,-768.89788102,0.000147,2]
[394865052,1764029546673,-9441.34106785,0.000147,2]
[394865053,1764029546780,-10000.01,0.000147,2]
[394865054,1764029546903,-10000.01,0.000147,2]
[394865055,1764029547067,-10000.01,0.000147,2]
[394865056,1764029547222,-10000.01,0.000147,2]
[394865057,1764029547324,-10000.01,0.000147,2]
[394865058,1764029547637,-10000.01,0.000147,2]
[394865059,1764029547799,-10000.01,0.000147,2]
[394865060,1764029547947,-10000.01,0.000147,2]
[394865061,1764029548129,-10000.01,0.000147,2]
[394865062,1764029558806,-10000.01,0.000147,2]
[394865063,1764029559049,-10000.01,0.000147,2]
[394865064,1764029559389,-10000.01,0.000147,2]
[394865065,1764029559511,-10000.01,0.000147,2]
[394865066,1764029559649,-10000.01,0.000147,2]
[394865067,1764029559934,-10000.01,0.000147,2]
[394865068,1764029559975,-10000.01,0.000147,2]
[394865069,1764029560047,-10000.01,0.000147,2]
[394865070,1764029560182,-10000.01,0.000147,2]
[394865071,1764029561698,-10000.01,0.000147,2]
[394865072,1764029570979,-783.0,0.00014699,2]
[394865073,1764029571024,-8434.01,0.000147,2]
[394865074,1764029571191,-10000.01,0.000147,2]
[394865075,1764029571316,-10000.01,0.000147,2]
[394865076,1764029571480,-10000.01,0.000147,2]
[394865077,1764029571604,-10000.01,0.000147,2]
[394865078,1764029571750,-10000.01,0.000147,2]
[394865079,1764029571909,-10000.01,0.000147,2]
[394865081,1764029573886,-10000.01,0.000147,2]
[394865084,1764029576936,-10000.01,0.000147,2]
[394865085,1764029577076,-10000.01,0.000147,2]
[394865086,1764029577221,-10000.01,0.000147,2]
[394865087,1764029577370,-10000.01,0.000147,2]
[394865088,1764029577508,-10000.01,0.000147,2]
[394865089,1764029577641,-10000.01,0.000147,2]
[394865090,1764029577767,-10000.01,0.000147,2]
[394865107,1764029656453,-2544.318666,0.00014625,2]
[394865108,1764029656489,-297.47842436,0.00014699,2]
[394865109,1764029656529,-500.0,0.00014699,2]
[394865110,1764029656563,-500.0,0.00014699,2]
[394865111,1764029656606,-500.0,0.00014699,2]
[394865112,1764029656647,-500.0,0.00014699,2]
[394865113,1764029656785,-316.41581928,0.00014699,2]
[394865114,1764029662405,-183.58418072,0.00014699,2]
[394865115,1764029662448,-500.0,0.00014699,2]
[394865116,1764029662490,-500.0,0.00014699,2]
[394865117,1764029662530,-500.0,0.00014699,2]
[394865118,1764029662568,-500.0,0.00014699,2]
[394865119,1764029662611,-500.0,0.00014699,2]
[394865120,1764029662649,-500.0,0.00014699,2]
[394865121,1764029662687,-500.0,0.00014699,2]
[394865122,1764029662725,-500.0,0.00014699,2]
[394865123,1764029662769,-500.0,0.00014699,2]
[394865124,1764029662807,-132.84163856,0.00014699,2]
[394865125,1764029663014,-367.15836144,0.00014699,2]
[394865130,1764029668560,-500.0,0.00014699,2]
[394865131,1764029668602,-500.0,0.00014699,2]
[394865132,1764029668643,-500.0,0.00014699,2]
[394865133,1764029668682,-500.0,0.00014699,2]
[394865134,1764029668721,-500.0,0.00014699,2]
[394865135,1764029668760,-500.0,0.00014699,2]
[394865136,1764029668804,-500.0,0.00014699,2]
[394865139,1764029668845,-500.0,0.00014699,2]
[394865141,1764029668891,-500.0,0.00014699,2]
[394865143,1764029668928,-500.0,0.00014699,2]
[394865150,1764029669148,-0.01,0.00014699,2]
[394865286,1764029702252,-4911.372668,0.000145,2]